fUST/lending_fUST_20240225
["ID","MTS","AMOUNT","RATE_DAILY","PERIOD"]
[315065244,1708801840322,-500.0,0.00020418,2]
[315065245,1708801840331,-500.0,0.00020418,2]
[315065246,1708801840340,-188.37381616,0.00020418,2]
[315065247,1708801840351,-614.0,0.00020418,2]
[315065248,1708801840360,-500.0,0.00020419,2]
[315065249,1708801840369,-500.0,0.00020419,2]
[315065250,1708801840379,-559.7,0.00020419,2]
[315065251,1708801840388,-899.78,0.00020419,2]
[315065253,1708801840397,-728.78,0.00020419,2]
[315065254,1708801840406,-500.0,0.00020419,2]
[315065255,1708801840415,-500.0,0.00020419,2]
[315065256,1708801840424,-654.34,0.00020419,2]
[315065257,1708801840433,-2520.85,0.00020419,2]
[315065258,1708801840443,-4051.72,0.00020419,2]
[315065259,1708801840452,-1647.57,0.0002042,2]
[315065260,1708801840461,-775.69,0.0002042,2]
[315065261,1708801840470,-500.0,0.00020516,2]
[315065262,1708801840480,-500.0,0.00020516,2]
[315065263,1708801840490,-500.0,0.00020516,2]
[315065264,1708801840500,-1026.8,0.00020516,2]
[315065265,1708801840509,-1048.54,0.00020516,2]
[315065266,1708801840519,-570.43,0.00020516,2]
[315065267,1708801840528,-931.13,0.00020516,2]
[315065269,1708801840538,-5383.41,0.00020522,2]
[315065270,1708801840547,-376.57268739,0.00020522,2]
[315065281,1708801840642,-166.666666,0.00020524,2]
[315065284,1708801840669,-50000.0,0.00020531,2]
[315065286,1708801840679,-50000.0,0.00020532,2]
[315065288,1708801840688,-50000.0,0.00020535,2]
[315065290,1708801840697,-169.642876,0.00020545,2]
[315065292,1708801840707,-500.0,0.00020546,2]
[315065294,1708801840717,-506.51,0.00020546,2]
[315065296,1708801840726,-500.0,0.00020547,2]
[315065298,1708801840736,-500.0,0.00020547,2]
[315065300,1708801840748,-568.6,0.00020547,2]
[315065302,1708801840759,-500.0,0.00020547,2]
[315065304,1708801840769,-908.82,0.00020547,2]
[315065306,1708801840778,-620.50613827,0.00020547,2]
[315065308,1708801840787,-811.32,0.00020547,2]
[315065310,1708801840797,-800.58,0.00020547,2]
[315065312,1708801840806,-1102.59,0.00020547,2]
[315065314,1708801840815,-4647.64,0.00020547,2]
[315065316,1708801840825,-1490.36147625,0.00020583,2]
[315065318,1708801840835,-666.29113863,0.00020592,2]
[315065320,1708801840844,-50000.0,0.0002068,2]
[315065322,1708801840853,-500.0,0.0002068,2]
[315065324,1708801840862,-210.65235539,0.0002068,2]
[315065326,1708801840872,-500.0,0.0002068,2]
[315065328,1708801840882,-500.0,0.0002068,2]
[315065330,1708801840891,-500.0,0.0002068,2]
[315065332,1708801840900,-500.0,0.0002068,2]
[315065334,1708801840909,-500.0,0.0002068,2]
[315065336,1708801840919,-500.0,0.0002068,2]
[315065338,1708801840928,-315.27547034,0.0002068,2]
[315065340,1708801840937,-500.0,0.0002068,2]
[315065342,1708801840946,-500.0,0.0002068,2]
[315065344,1708801840955,-500.0,0.0002068,2]
[315065346,1708801840964,-500.0,0.0002068,2]
[315065348,1708801840974,-500.0,0.0002068,2]
[315065350,1708801840983,-500.0,0.0002068,2]
[315065352,1708801840992,-194.39386995,0.0002068,2]
[315065354,1708801841001,-500.0,0.0002068,2]
[315065356,1708801841010,-500.0,0.0002068,2]
[315065358,1708801841019,-500.0,0.0002068,2]
[315065360,1708801841028,-50000.0,0.00020681,2]
[315065362,1708801841037,-66666.97294559,0.00020683,2]
[315065364,1708801841046,-50000.0,0.00020685,2]
[315065366,1708801841055,-645.95,0.00020692,2]
[315065368,1708801841063,-500.0,0.00020692,2]
[315065370,1708801841072,-3981.15,0.00020692,2]
[315065372,1708801841081,-500.0,0.00020692,2]
[315065374,1708801841091,-500.0,0.00020692,2]
[315065376,1708801841099,-614.0,0.00020692,2]
[315065378,1708801841109,-500.0,0.00020693,2]
[315065380,1708801841118,-500.0,0.00020693,2]
[315065382,1708801841127,-559.7,0.00020693,2]
[315065384,1708801841136,-899.78,0.00020693,2]
[315065386,1708801841145,-728.78,0.00020693,2]
[315065388,1708801841155,-500.0,0.00020693,2]
[315065390,1708801841163,-500.0,0.00020693,2]
[315065392,1708801841172,-654.34,0.00020693,2]
[315065394,1708801841182,-2520.85,0.00020693,2]
[315065395,1708801841191,-1647.57,0.00020694,2]
[315065397,1708801841200,-775.69,0.00020694,2]
[315065399,1708801841209,-500.0,0.0002079,2]
[315065401,1708801841218,-500.0,0.0002079,2]
[315065403,1708801841228,-500.0,0.0002079,2]
[315065405,1708801841237,-1026.8,0.0002079,2]
[315065407,1708801841246,-1048.54,0.0002079,2]
[315065409,1708801841255,-570.43,0.0002079,2]
[315065411,1708801841265,-931.13,0.0002079,2]
[315065413,1708801841274,-5383.41,0.00020796,2]
[315065415,1708801841283,-500.0,0.0002082,2]
[315065417,1708801841292,-500.0,0.00020821,2]
[315065419,1708801841301,-602.16,0.00020821,2]
[315065421,1708801841313,-568.6,0.00020821,2]
[315065423,1708801841322,-500.0,0.00020821,2]
[315065426,1708801841332,-908.82,0.00020821,2]
[315065428,1708801841343,-811.32,0.00020821,2]
[315065430,1708801841353,-800.58,0.00020821,2]
[315065432,1708801841362,-1102.59,0.00020821,2]
[315065434,1708801841372,-4647.64,0.00020821,2]
[315065436,1708801841382,-645.95,0.00020966,2]
[315065438,1708801841391,-500.0,0.00020966,2]
[315065440,1708801841399,-3981.15,0.00020966,2]
[315065441,1708801841409,-500.0,0.00020966,2]
[315065443,1708801841418,-500.0,0.00020966,2]
[315065445,1708801841427,-614.0,0.00020966,2]
[315065447,1708801841437,-500.0,0.00020967,2]
[315065449,1708801841446,-500.0,0.00020967,2]
[315065451,1708801841455,-559.7,0.00020967,2]
[315065453,1708801841464,-899.78,0.00020967,2]
[315065455,1708801841474,-728.78,0.00020967,2]
[315065457,1708801841484,-500.0,0.00020967,2]
[315065459,1708801841493,-654.34,0.00020967,2]
[315065461,1708801841502,-2520.85,0.00020967,2]
[315065463,1708801841510,-1647.57,0.00020968,2]
[315065465,1708801841519,-775.69,0.00020968,2]
[315065467,1708801841528,-166.666666,0.00020973,2]
[315065469,1708801841538,-1336.0,0.00021,4]
[315065471,1708801841547,-793.02625831,0.00021,4]
[315065473,1708801841556,-500.0,0.00021064,2]
[315065475,1708801841566,-500.0,0.00021064,2]
[315065477,1708801841576,-500.0,0.00021064,2]
[315065478,1708801841586,-1026.8,0.00021064,2]
[315065479,1708801841595,-1048.54,0.00021064,2]
[315065480,1708801841604,-570.43,0.00021064,2]
[315065481,1708801841614,-931.13,0.00021064,2]
[315065482,1708801841623,-5383.41,0.0002107,2]
[315065483,1708801841633,-500.0,0.00021094,2]
[315065484,1708801841641,-500.0,0.00021095,2]
[315065485,1708801841651,-568.6,0.00021095,2]
[315065486,1708801841663,-500.0,0.00021095,2]
[315065487,1708801841674,-908.82,0.00021095,2]
[315065488,1708801841682,-811.32,0.00021095,2]
[315065489,1708801841692,-800.58,0.00021095,2]
[315065490,1708801841701,-1102.59,0.00021095,2]
[315065491,1708801841711,-4647.64,0.00021095,2]
[315065492,1708801841720,-1262.13341624,0.00021229,2]
[315065493,1708801841730,-1627.18452278,0.00021229,2]
[315065494,1708801841739,-645.95,0.0002124,2]
[315065495,1708801841750,-500.0,0.0002124,2]
[315065496,1708801841759,-3981.15,0.0002124,2]
[315065497,1708801841768,-197.9041891,0.0002124,2]
[315065498,1708801841783,-302.0958109,0.0002124,2]
[315065499,1708801841792,-500.0,0.0002124,2]
[315065500,1708801841801,-614.0,0.0002124,2]
[315065501,1708801841810,-500.0,0.00021241,2]
[315065502,1708801841819,-424.53824791,0.00021241,2]
[315065503,1708801841935,-4051.72,0.00020693,2]
[315065504,1708801841944,-4051.72,0.00020967,2]
[315065505,1708801841954,-135.16175209,0.00021241,2]
[315065506,1708801841963,-899.78,0.00021241,2]
[315065507,1708801841973,-728.78,0.00021241,2]
[315065508,1708801841983,-500.0,0.00021241,2]
[315065509,1708801841993,-654.34,0.00021241,2]
[315065510,1708801842002,-2520.85,0.00021241,2]
[315065511,1708801842012,-4051.72,0.00021241,2]
[315065512,1708801842021,-1647.57,0.00021242,2]
[315065513,1708801842030,-775.69,0.00021242,2]
[315065514,1708801842039,-1490.36147623,0.00021293,2]
[315065515,1708801842052,-500.0,0.00021338,2]
[315065516,1708801842061,-500.0,0.00021338,2]
[315065517,1708801842070,-500.0,0.00021338,2]
[315065518,1708801842079,-1026.8,0.00021338,2]
[315065519,1708801842089,-1048.54,0.00021338,2]
[315065520,1708801842098,-570.43,0.00021338,2]
[315065521,1708801842107,-931.13,0.00021338,2]
[315065522,1708801842117,-4733.88237233,0.00021344,2]
[315065523,1708801842132,-649.52762767,0.00021344,2]
[315065524,1708801842141,-864.31930977,0.00021362,2]
[315065525,1708801842151,-500.0,0.00021368,2]
[315065526,1708801842160,-500.0,0.00021369,2]
[315065527,1708801842170,-568.6,0.00021369,2]
[315065528,1708801842179,-500.0,0.00021369,2]
[315065529,1708801842188,-908.82,0.00021369,2]
[315065530,1708801842198,-811.32,0.00021369,2]
[315065531,1708801842207,-572.13314843,0.00021369,2]
[315065532,1708801842218,-228.44685157,0.00021369,2]
[315065533,1708801842227,-774.2587233,0.00021369,2]
[315065534,1708801842238,-328.3312767,0.00021369,2]
[315065535,1708801842248,-4647.64,0.00021369,2]
[315065536,1708801842258,-166.666666,0.00021422,2]
[315065537,1708801842266,-645.95,0.00021514,2]
[315065538,1708801842277,-500.0,0.00021514,2]
[315065539,1708801842286,-3981.15,0.00021514,2]
[315065540,1708801842295,-500.0,0.00021514,2]
[315065541,1708801842304,-500.0,0.00021514,2]
[315065542,1708801842313,-614.0,0.00021514,2]
[315065543,1708801842323,-500.0,0.00021515,2]
[315065544,1708801842333,-559.7,0.00021515,2]
[315065545,1708801842342,-899.78,0.00021515,2]
[315065546,1708801842352,-728.78,0.00021515,2]
[315065547,1708801842361,-500.0,0.00021515,2]
[315065548,1708801842371,-654.34,0.00021515,2]
[315065549,1708801842380,-2520.85,0.00021515,2]
[315065550,1708801842390,-4051.72,0.00021515,2]
[315065551,1708801842399,-1647.57,0.00021516,2]
[315065552,1708801842409,-775.69,0.00021516,2]
[315065553,1708801842418,-500.0,0.00021612,2]
[315065554,1708801842427,-500.0,0.00021612,2]
[315065555,1708801842437,-1026.8,0.00021612,2]
[315065556,1708801842446,-1048.54,0.00021612,2]
[315065557,1708801842455,-570.43,0.00021612,2]
[315065558,1708801842465,-931.13,0.00021612,2]
[315065559,1708801842474,-5383.41,0.00021618,2]
[315065560,1708801842483,-9276.44282003,0.00021629,2]
[315065561,1708801842492,-6052.33176909,0.00021629,2]
[315065582,1708801843091,-500.0,0.00019451,2]
[315065583,1708801843100,-1662.12296294,0.00021629,2]
[315065584,1708801843113,-1372.39923913,0.00021629,2]
[315065585,1708801843122,-500.0,0.00021642,2]
[315065586,1708801843131,-500.0,0.00021643,2]
[315065587,1708801843140,-568.6,0.00021643,2]
[315065588,1708801843149,-500.0,0.00021643,2]
[315065589,1708801843159,-908.82,0.00021643,2]
[315065590,1708801843168,-811.32,0.00021643,2]
[315065592,1708801843177,-800.58,0.00021643,2]
[315065593,1708801843186,-1102.59,0.00021643,2]
[315065594,1708801843196,-4647.64,0.00021643,2]
[315065595,1708801843204,-645.95,0.00021788,2]
[315065596,1708801843214,-500.0,0.00021788,2]
[315065597,1708801843223,-3981.15,0.00021788,2]
[315065598,1708801843232,-500.0,0.00021788,2]
[315065599,1708801843241,-500.0,0.00021788,2]
[315065600,1708801843251,-614.0,0.00021788,2]
[315065601,1708801843260,-500.0,0.00021789,2]
[315065602,1708801843269,-559.7,0.00021789,2]
[315065603,1708801843279,-899.78,0.00021789,2]
[315065604,1708801843288,-728.78,0.00021789,2]
[315065605,1708801843297,-500.0,0.00021789,2]
[315065606,1708801843307,-654.34,0.00021789,2]
[315065607,1708801843317,-2520.85,0.00021789,2]
[315065608,1708801843327,-4051.72,0.00021789,2]
[315065609,1708801843336,-1647.57,0.0002179,2]
[315065610,1708801843346,-775.69,0.0002179,2]
[315065611,1708801843356,-500.0,0.00021886,2]
[315065612,1708801843365,-500.0,0.00021886,2]
[315065613,1708801843374,-1026.8,0.00021886,2]
[315065614,1708801843384,-1048.54,0.00021886,2]
[315065615,1708801843393,-570.43,0.00021886,2]
[315065616,1708801843402,-931.13,0.00021886,2]
[315065617,1708801843412,-5383.41,0.00021892,2]
[315065618,1708801843421,-500.0,0.00021916,2]
[315065619,1708801843430,-1001.37349301,0.00021917,2]
[315065620,1708801843440,-500.0,0.00021917,2]
[315065621,1708801843449,-568.6,0.00021917,2]
[315065622,1708801843458,-500.0,0.00021917,2]
[315065623,1708801843468,-908.82,0.00021917,2]
[315065624,1708801843477,-811.32,0.00021917,2]
[315065625,1708801843487,-800.58,0.00021917,2]
[315065626,1708801843496,-1102.59,0.00021917,2]
[315065627,1708801843505,-4647.64,0.00021917,2]
[315065628,1708801843515,-9227.76941562,0.00021918,2]
[315065629,1708801843527,-772.23058438,0.00021918,2]
[315065630,1708801843537,-706.471977,0.00021918,2]
[315065631,1708801843547,-540.14855047,0.00022,2]
[315065632,1708801843558,-87.84574528,0.00022,2]
[315065633,1708801843567,-662.15425472,0.00022,2]
[315065634,1708801846180,-500.0,0.00019595,2]
[315065635,1708801846189,-411.75253043,0.00019595,2]
[315065636,1708801846236,-500.0,0.00019323,2]
[315065639,1708801846245,-88.24746957,0.00019595,2]
[315065642,1708801846254,-500.0,0.00019595,2]
[315065645,1708801846263,-500.0,0.00019595,2]
[315065648,1708801846273,-245.37956749,0.00019595,2]
[315065718,1708802140115,150.0,0.000201,6]
[315065720,1708802278343,382.10816849,0.00018214,3]
[315065721,1708802309734,2398.0926992,0.00018198,2]
[315065722,1708802330047,250.0,0.00018198,2]
[315065723,1708802467984,303.5479402,0.00018216,2]
[315065725,1708802665960,17306.29309067,0.00018198,2]
[315065726,1708802665994,7593.70690933,0.00018198,2]
[315065729,1708802844112,-281.345214,0.00018312,2]
[315065730,1708802844134,-325.795746,0.000189,2]
[315065731,1708802974107,-130.25048096,0.000189,2]
[315065732,1708802974129,-8908.83,0.00019,2]
[315065733,1708802974149,-290.0,0.00019121,2]
[315065734,1708802974174,-169.601511,0.00019122,2]
[315065735,1708802974195,-155.06222808,0.00019122,2]
[315065736,1708802974217,-171.636651,0.00019178,2]
[315065737,1708802974239,-166.666666,0.00019178,2]
[315065738,1708802974258,-172.45288,0.00019178,2]
[315065739,1708802974280,-154.93802479,0.0001932,2]
[315065740,1708802974427,-500.0,0.0001932,2]
[315065741,1708802974449,-602.31,0.0001932,2]
[315065742,1708802974470,-336.23996945,0.0001932,2]
[315065743,1708802974491,-500.0,0.0001932,2]
[315065744,1708802974513,-3592.2,0.0001932,2]
[315065745,1708802974535,-500.0,0.0001932,2]
[315065746,1708802974557,-500.0,0.0001932,2]
[315065747,1708802974578,-500.0,0.0001932,2]
[315065748,1708802974601,-246.52151735,0.00019321,2]
[315065749,1708802974623,-500.0,0.00019321,2]
[315065750,1708802974644,-500.0,0.00019321,2]
[315065751,1708802974664,-500.0,0.00019321,2]
[315065752,1708802974687,-500.0,0.00019321,2]
[315065753,1708802974709,-500.0,0.00019321,2]
[315065754,1708802974730,-500.0,0.00019321,2]
[315065755,1708802974754,-551.0,0.00019321,2]
[315065756,1708802974775,-548.44878912,0.00019321,2]
[315065757,1708802974798,-559.40281713,0.00019321,2]
[315065758,1708802974820,-305.08549894,0.00019321,2]
[315065759,1708802974843,-500.0,0.00019321,2]
[315065760,1708802974865,-801.97,0.00019321,2]
[315065761,1708802974890,-500.0,0.00019321,2]
[315065762,1708802974912,-678.31,0.00019321,2]
[315065763,1708802974934,-500.0,0.00019321,2]
[315065764,1708802974958,-500.0,0.00019321,2]
[315065765,1708802974982,-5167.69,0.00019321,2]
[315065766,1708802975007,-500.0,0.00019321,2]
[315065767,1708802975028,-500.0,0.00019321,2]
[315065768,1708802975052,-501.19258491,0.00019321,2]
[315065769,1708802975077,-500.0,0.00019322,2]
[315065770,1708802975104,-500.0,0.00019322,2]
[315065771,1708802975124,-500.0,0.00019322,2]
[315065772,1708802975146,-500.0,0.00019322,2]
[315065773,1708802975166,-500.0,0.00019322,2]
[315065774,1708802975187,-500.0,0.00019322,2]
[315065775,1708802975208,-500.0,0.00019322,2]
[315065776,1708802975229,-500.0,0.00019322,2]
[315065777,1708802975250,-500.0,0.00019322,2]
[315065778,1708802975270,-500.0,0.00019322,2]
[315065779,1708802975291,-4066.69,0.00019322,2]
[315065780,1708802975311,-1604.65,0.00019322,2]
[315065781,1708802975331,-500.0,0.00019322,2]
[315065782,1708802975351,-500.0,0.00019322,2]
[315065783,1708802975372,-709.24,0.00019322,2]
[315065784,1708802975392,-500.0,0.00019322,2]
[315065785,1708802975412,-500.0,0.00019323,2]
[315065786,1708802975432,-500.0,0.00019323,2]
[315065787,1708802975452,-500.0,0.00019323,2]
[315065788,1708802975473,-500.0,0.00019323,2]
[315065789,1708802975493,-500.0,0.00019323,2]
[315065790,1708802975514,-500.0,0.00019323,2]
[315065791,1708802975534,-500.0,0.00019323,2]
[315065792,1708802975555,-500.0,0.00019323,2]
[315065793,1708802975575,-500.0,0.00019323,2]
[315065794,1708802975595,-500.0,0.00019323,2]
[315065795,1708802975616,-442.12465368,0.00019323,2]
[315065796,1708802975638,-500.0,0.00019426,2]
[315065797,1708802975658,-500.0,0.00019426,2]
[315065798,1708802975679,-500.0,0.00019426,2]
[315065799,1708802975700,-1026.87,0.00019426,2]
[315065800,1708802975720,-157.56559089,0.00019426,2]
[315065801,1708802975741,-500.0,0.00019426,2]
[315065802,1708802975762,-477.40709729,0.00019426,2]
[315065848,1708803032321,-500.0,0.0001932,2]
[315065850,1708803032331,-500.0,0.0001932,2]
[315065852,1708803032340,-528.05,0.0001932,2]
[315065854,1708803032349,-500.0,0.00019321,2]
[315065856,1708803032358,-500.0,0.00019321,2]
[315065858,1708803032367,-41.0,0.00019323,2]
[315065860,1708803032378,-459.0,0.00019323,2]
[315065862,1708803032388,-22.59290271,0.00019426,2]
[315065864,1708803032397,-1025.65,0.00019426,2]
[315065866,1708803032406,-544.72,0.00019426,2]
[315065869,1708803032415,-500.0,0.0001945,2]
[315065871,1708803032425,-700.18,0.0001945,2]
[315065873,1708803032434,-500.0,0.0001945,2]
[315065875,1708803032443,-500.0,0.0001945,2]
[315065877,1708803032453,-500.0,0.0001945,2]
[315065879,1708803032461,-500.0,0.0001945,2]
[315065880,1708803032470,-71.60452241,0.00019487,2]
[315065883,1708803032483,-428.39547759,0.00019487,2]
[315065885,1708803032492,-699.96040269,0.00019494,2]
[315065887,1708803032501,-500.0,0.00019497,2]
[315065889,1708803032511,-500.0,0.00019507,2]
[315065891,1708803032519,-602.31,0.00019594,2]
[315065893,1708803032529,-500.0,0.00019594,2]
[315065894,1708803032538,-3592.2,0.00019594,2]
[315065897,1708803032548,-500.0,0.00019594,2]
[315065899,1708803032558,-500.0,0.00019594,2]
[315065901,1708803032568,-500.0,0.00019594,2]
[315065902,1708803032577,-528.05,0.00019594,2]
[315065905,1708803032587,-500.0,0.00019595,2]
[315065906,1708803032596,-500.0,0.00019595,2]
[315065908,1708803032606,-389.05948452,0.00019595,2]
[315065910,1708803032615,-500.0,0.00019595,2]
[315065912,1708803032624,-500.0,0.00019595,2]
[315065915,1708803032634,-500.0,0.00019595,2]
[315065917,1708803032643,-500.0,0.00019595,2]
[315065918,1708803032653,-500.0,0.00019595,2]
[315065920,1708803032662,-500.0,0.00019595,2]
[315065922,1708803032671,-500.0,0.00019595,2]
[315065924,1708803032681,-500.0,0.00019595,2]
[315065926,1708803032690,-500.0,0.00019595,2]
[315065928,1708803032700,-500.0,0.00019595,2]
[315065930,1708803032709,-500.0,0.00019595,2]
[315065932,1708803032718,-500.0,0.00019595,2]
[315065934,1708803032730,-587.99,0.00019595,2]
[315065935,1708803032740,-500.0,0.00019595,2]
[315065936,1708803032749,-2100.7,0.00019595,2]
[315065937,1708803032759,-500.0,0.00019595,2]
[315065938,1708803032768,-3238.71,0.00019595,2]
[315065939,1708803032778,-888.47,0.00019595,2]
[315065940,1708803032788,-500.0,0.00019595,2]
[315065941,1708803032797,-500.0,0.00019595,2]
[315065942,1708803032806,-500.0,0.00019595,2]
[315065943,1708803032815,-618.87,0.00019595,2]
[315065944,1708803032824,-801.97,0.00019595,2]
[315065945,1708803032833,-879.58,0.00019595,2]
[315065946,1708803032843,-258.4769532,0.00019595,2]
[315065947,1708803032852,-678.31,0.00019595,2]
[315065948,1708803032861,-5167.69,0.00019595,2]
[315065949,1708803032870,-500.0,0.00019595,2]
[315065950,1708803032879,-500.0,0.00019595,2]
[315065951,1708803032888,-500.0,0.00019595,2]
[315065952,1708803032898,-794.62,0.00019595,2]
[315065953,1708803032907,-500.0,0.00019595,2]
[315065954,1708803032917,-1083.64,0.00019595,2]
[315065955,1708803032926,-500.0,0.00019595,2]
[315065956,1708803032935,-500.0,0.00019595,2]
[315065957,1708803032944,-3897.24,0.00019595,2]
[315065958,1708803032953,-500.0,0.00019595,2]
[315065959,1708803032963,-500.0,0.00019595,2]
[315065960,1708803032973,-500.0,0.00019595,2]
[315065961,1708803032982,-500.0,0.00019595,2]
[315065962,1708803032991,-500.0,0.00019596,2]
[315065963,1708803033000,-500.0,0.00019596,2]
[315065965,1708803033014,-500.0,0.00019596,2]
[315065967,1708803033023,-500.0,0.00019596,2]
[315065969,1708803033032,-644.03515198,0.00019596,2]
[315065971,1708803033041,-1604.65,0.00019596,2]
[315065973,1708803033050,-218.42275406,0.00019596,2]
[315065975,1708803033059,-709.24,0.00019596,2]
[315065977,1708803033068,-500.0,0.00019596,2]
[315065979,1708803033077,-500.0,0.00019597,2]
[315065981,1708803033087,-500.0,0.00019597,2]
[315065983,1708803033096,-500.0,0.00019597,2]
[315065985,1708803033106,-500.0,0.00019597,2]
[315065987,1708803033115,-500.0,0.00019597,2]
[315065988,1708803033124,-166.666666,0.00019627,2]
[315065990,1708803033136,-500.0,0.000197,2]
[315065992,1708803033145,-500.0,0.000197,2]
[315065995,1708803033154,-1026.87,0.000197,2]
[315065997,1708803033164,-1025.65,0.000197,2]
[315065998,1708803033173,-544.72,0.000197,2]
[315065999,1708803033183,-500.0,0.00019723,2]
[315066000,1708803033193,-500.0,0.00019724,2]
[315066002,1708803033202,-700.18,0.00019724,2]
[315066003,1708803033212,-500.0,0.00019724,2]
[315066004,1708803033221,-699.96040268,0.00019726,2]
[315066005,1708803033231,-2902.64831944,0.00019826,3]
[315066006,1708803033243,-20605.17168056,0.00019826,3]
[315066007,1708803033253,-24200.13517419,0.00019836,3]
[315066042,1708803038212,-500.0,0.00019321,2]
[315066044,1708803038221,-4009.24482581,0.00019836,3]
[315066046,1708803038231,-33851.26,0.00019846,3]
[315066048,1708803038240,-40621.51,0.00019856,3]
[315066050,1708803038249,-602.31,0.00019868,2]
[315066052,1708803038258,-500.0,0.00019868,2]
[315066054,1708803038267,-3592.2,0.00019868,2]
[315066056,1708803038275,-500.0,0.00019868,2]
[315066058,1708803038284,-500.0,0.00019868,2]
[315066060,1708803038294,-500.0,0.00019868,2]
[315066062,1708803038303,-528.05,0.00019868,2]
[315066064,1708803038311,-500.0,0.00019869,2]
[315066065,1708803038321,-500.0,0.00019869,2]
[315066067,1708803038329,-500.0,0.00019869,2]
[315066068,1708803038338,-631.03387487,0.00019869,2]
[315066070,1708803038348,-500.0,0.00019869,2]
[315066072,1708803038357,-500.0,0.00019869,2]
[315066074,1708803038366,-500.0,0.00019869,2]
[315066076,1708803038375,-500.0,0.00019869,2]
[315066078,1708803038385,-153.94,0.00019869,2]
[315066079,1708803038394,-500.0,0.00019869,2]
[315066081,1708803038403,-587.99,0.00019869,2]
[315066083,1708803038414,-2100.7,0.00019869,2]
[315066085,1708803038424,-500.0,0.00019869,2]
[315066087,1708803038434,-3238.71,0.00019869,2]
[315066089,1708803038442,-888.47,0.00019869,2]
[315066091,1708803038452,-500.0,0.00019869,2]
[315066093,1708803038461,-502.37425463,0.00019869,2]
[315066095,1708803038470,-618.87,0.00019869,2]
[315066097,1708803038480,-801.97,0.00019869,2]
[315066099,1708803038489,-879.58,0.00019869,2]
[315066101,1708803038498,-678.31,0.00019869,2]
[315066103,1708803038508,-5167.69,0.00019869,2]
[315066104,1708803038517,-500.0,0.00019869,2]
[315066105,1708803038527,-794.62,0.00019869,2]
[315066106,1708803038537,-1083.64,0.00019869,2]
[315066107,1708803038547,-543.68572627,0.00019869,2]
[315066108,1708803038556,-3897.24,0.00019869,2]
[315066109,1708803038566,-500.0,0.00019869,2]
[315066110,1708803038575,-500.0,0.00019869,2]
[315066111,1708803038585,-500.0,0.0001987,2]
[315066112,1708803038595,-596.53827503,0.0001987,2]
[315066113,1708803038604,-500.0,0.0001987,2]
[315066114,1708803038613,-709.24,0.0001987,2]
[315066115,1708803038622,-500.0,0.00019871,2]
[315066116,1708803038632,-500.0,0.00019871,2]
[315066117,1708803038641,-500.0,0.00019871,2]
[315066118,1708803038650,-500.0,0.00019871,2]
[315066119,1708803038659,-699.96040268,0.00019958,2]
[315066120,1708803038668,-500.0,0.00019974,2]
[315066121,1708803038677,-500.0,0.00019974,2]
[315066122,1708803038686,-1026.87,0.00019974,2]
[315066123,1708803038695,-1025.65,0.00019974,2]
[315066124,1708803038704,-544.72,0.00019974,2]